Workbook

Sheet Feuil1 (hidden)
C1: FC1 40 | D1: FC1 44 | E1: FC1 48 | F1: FC1 53 | G1: FC1 58 | H1: FC1 63 | I1: FC1 69 | J1: FC1 +69 | K1: FC2 44 | L1: FC2 48 | M1: FC2 53 | N1: FC2 58 | O1: FC2 63 | P1: FC2 69 | Q1: FC2 +69 | R1: FJ48 | S1: FJ53 | T1: FJ58 | U1: FJ63 | V1: FJ69 | W1: FJ75 | X1: FJ+75 | Y1: FS48 | Z1: FS53 | AA1: FS58 | AB1: FS63 | AC1: FS69 | AD1: FS75 | AE1: FS+75 | AF1: C1 45 | AG1: C1 50 | AH1: C1 56 | AI1: C1 62 | AJ1: C1 69 | AK1: C1 77 | AL1: C1 85 | AM1: C1 94 | AN1: C1 +94 | AO1: C2 50 | AP1: C2 56 | AQ1: C2 62 | AR1: C2 69 | AS1: C2 77 | AT1: C2 85 | AU1: C2 94 | AV1: C2 +94 | AW1: J56 | AX1: J62 | AY1: J69 | AZ1: J77 | BA1: J85 | BB1: J94 | BC1: J105 | BD1: J+105 | BE1: S56 | BF1: S62 | BG1: S69 | BH1: S77 | BI1: S85 | BJ1: S94 | BK1: S105 | BL1: S+105
B2: DEBUTANT | C2: 20 | D2: 25 | E2: 30 | F2: 35 | G2: 40 | H2: 45 | I2: 50 | J2: 60 | K2: 30 | L2: 35 | M2: 45 | N2: 50 | O2: 55 | P2: 60 | Q2: 70 | R2: 45 | S2: 55 | T2: 60 | U2: 65 | V2: 70 | W2: 80 | X2: 90 | Y2: 55 | Z2: 65 | AA2: 70 | AB2: 75 | AC2: 80 | AD2: 95 | AE2: 100 | AF2: 35 | AG2: 40 | AH2: 50 | AI2: 75 | AJ2: 85 | AK2: 90 | AL2: 100 | AM2: 110 | AN2: 120 | AO2: 45 | AP2: 65 | AQ2: 85 | AR2: 95 | AS2: 110 | AT2: 120 | AU2: 125 | AV2: 135 | AW2: 80 | AX2: 90 | AY2: 110 | AZ2: 130 | BA2: 145 | BB2: 150 | BC2: 155 | BD2: 165 | BE2: 95 | BF2: 120 | BG2: 130 | BH2: 150 | BI2: 165 | BJ2: 170 | BK2: 175 | BL2: 185
B3: DEPARTEMENTAL | C3: 25 | D3: 30 | E3: 35 | F3: 45 | G3: 50 | H3: 55 | I3: 60 | J3: 70 | K3: 40 | L3: 45 | M3: 55 | N3: 60 | O3: 65 | P3: 70 | Q3: 80 | R3: 55 | S3: 65 | T3: 70 | U3: 75 | V3: 80 | W3: 95 | X3: 100 | Y3: 65 | Z3: 75 | AA3: 80 | AB3: 85 | AC3: 90 | AD3: 105 | AE3: 110 | AF3: 50 | AG3: 55 | AH3: 70 | AI3: 95 | AJ3: 105 | AK3: 110 | AL3: 120 | AM3: 130 | AN3: 140 | AO3: 65 | AP3: 85 | AQ3: 105 | AR3: 115 | AS3: 130 | AT3: 140 | AU3: 145 | AV3: 155 | AW3: 100 | AX3: 120 | AY3: 130 | AZ3: 150 | BA3: 165 | BB3: 170 | BC3: 175 | BD3: 185 | BE3: 115 | BF3: 135 | BG3: 150 | BH3: 170 | BI3: 185 | BJ3: 190 | BK3: 195 | BL3: 205
B4: REGIONAL | C4: 35 | D4: 40 | E4: 45 | F4: 55 | G4: 60 | H4: 65 | I4: 70 | J4: 80 | K4: 50 | L4: 55 | M4: 65 | N4: 70 | O4: 75 | P4: 80 | Q4: 95 | R4: 65 | S4: 75 | T4: 80 | U4: 85 | V4: 90 | W4: 105 | X4: 110 | Y4: 75 | Z4: 85 | AA4: 90 | AB4: 95 | AC4: 105 | AD4: 115 | AE4: 125 | AF4: 60 | AG4: 65 | AH4: 85 | AI4: 105 | AJ4: 115 | AK4: 130 | AL4: 140 | AM4: 145 | AN4: 155 | AO4: 80 | AP4: 100 | AQ4: 120 | AR4: 130 | AS4: 150 | AT4: 160 | AU4: 165 | AV4: 175 | AW4: 115 | AX4: 135 | AY4: 150 | AZ4: 170 | BA4: 185 | BB4: 190 | BC4: 195 | BD4: 205 | BE4: 130 | BF4: 150 | BG4: 170 | BH4: 190 | BI4: 205 | BJ4: 215 | BK4: 220 | BL4: 225
B5: INTERREGIONAL | C5: 45 | D5: 50 | E5: 55 | F5: 65 | G5: 70 | H5: 75 | I5: 80 | J5: 95 | K5: 60 | L5: 65 | M5: 75 | N5: 80 | O5: 85 | P5: 90 | Q5: 105 | R5: 75 | S5: 85 | T5: 90 | U5: 95 | V5: 105 | W5: 115 | X5: 125 | Y5: 85 | Z5: 95 | AA5: 100 | AB5: 110 | AC5: 120 | AD5: 130 | AE5: 140 | AF5: 75 | AG5: 80 | AH5: 100 | AI5: 120 | AJ5: 130 | AK5: 150 | AL5: 160 | AM5: 165 | AN5: 175 | AO5: 95 | AP5: 115 | AQ5: 135 | AR5: 150 | AS5: 170 | AT5: 180 | AU5: 185 | AV5: 195 | AW5: 130 | AX5: 150 | AY5: 170 | AZ5: 190 | BA5: 205 | BB5: 215 | BC5: 220 | BD5: 225 | BE5: 145 | BF5: 170 | BG5: 190 | BH5: 210 | BI5: 225 | BJ5: 235 | BK5: 245 | BL5: 250
B6: FEDERAL | C6: 50 | D6: 60 | E6: 65 | F6: 75 | G6: 80 | H6: 85 | I6: 90 | J6: 105 | K6: 70 | L6: 75 | M6: 85 | N6: 90 | O6: 95 | P6: 105 | Q6: 115 | R6: 85 | S6: 95 | T6: 100 | U6: 110 | V6: 120 | W6: 130 | X6: 140 | Y6: 95 | Z6: 105 | AA6: 115 | AB6: 125 | AC6: 135 | AD6: 145 | AE6: 150 | AF6: 90 | AG6: 95 | AH6: 115 | AI6: 135 | AJ6: 150 | AK6: 170 | AL6: 180 | AM6: 185 | AN6: 195 | AO6: 110 | AP6: 130 | AQ6: 150 | AR6: 170 | AS6: 185 | AT6: 200 | AU6: 210 | AV6: 220 | AW6: 145 | AX6: 170 | AY6: 190 | AZ6: 210 | BA6: 225 | BB6: 235 | BC6: 245 | BD6: 250 | BE6: 170 | BF6: 190 | BG6: 220 | BH6: 240 | BI6: 250 | BJ6: 260 | BK6: 270 | BL6: 280
B7: NATIONAL | C7: 60 | D7: 70 | E7: 75 | F7: 85 | G7: 90 | H7: 95 | I7: 105 | J7: 115 | K7: 80 | L7: 85 | M7: 95 | N7: 100 | O7: 110 | P7: 120 | Q7: 130 | R7: 95 | S7: 105 | T7: 115 | U7: 125 | V7: 135 | W7: 145 | X7: 150 | Y7: 110 | Z7: 120 | AA7: 130 | AB7: 140 | AC7: 150 | AD7: 160 | AE7: 170 | AF7: 105 | AG7: 110 | AH7: 130 | AI7: 150 | AJ7: 170 | AK7: 185 | AL7: 200 | AM7: 210 | AN7: 220 | AO7: 120 | AP7: 145 | AQ7: 170 | AR7: 190 | AS7: 200 | AT7: 220 | AU7: 225 | AV7: 235 | AW7: 170 | AX7: 190 | AY7: 220 | AZ7: 240 | BA7: 250 | BB7: 260 | BC7: 270 | BD7: 280 | BE7: 190 | BF7: 210 | BG7: 240 | BH7: 265 | BI7: 280 | BJ7: 290 | BK7: 300 | BL7: 310
B8: INTERNATIONAL B | C8: 70 | D8: 80 | E8: 85 | F8: 95 | G8: 100 | H8: 110 | I8: 120 | J8: 130 | K8: 90 | L8: 95 | M8: 105 | N8: 115 | O8: 125 | P8: 135 | Q8: 145 | R8: 110 | S8: 120 | T8: 130 | U8: 140 | V8: 150 | W8: 160 | X8: 170 | Y8: 125 | Z8: 140 | AA8: 150 | AB8: 160 | AC8: 170 | AD8: 180 | AE8: 190 | AF8: 115 | AG8: 120 | AH8: 145 | AI8: 170 | AJ8: 190 | AK8: 200 | AL8: 220 | AM8: 225 | AN8: 235 | AO8: 135 | AP8: 170 | AQ8: 190 | AR8: 210 | AS8: 220 | AT8: 240 | AU8: 250 | AV8: 260 | AW8: 190 | AX8: 210 | AY8: 240 | AZ8: 260 | BA8: 280 | BB8: 290 | BC8: 300 | BD8: 310 | BE8: 210 | BF8: 230 | BG8: 260 | BH8: 285 | BI8: 300 | BJ8: 310 | BK8: 325 | BL8: 330
B9: INTERNATIONAL A | C9: 80 | D9: 90 | E9: 95 | F9: 105 | G9: 115 | H9: 125 | I9: 135 | J9: 145 | K9: 100 | L9: 110 | M9: 120 | N9: 130 | O9: 140 | P9: 150 | Q9: 160 | R9: 125 | S9: 135 | T9: 150 | U9: 160 | V9: 170 | W9: 180 | X9: 190 | Y9: 140 | Z9: 160 | AA9: 170 | AB9: 180 | AC9: 190 | AD9: 195 | AE9: 210 | AF9: 130 | AG9: 135 | AH9: 170 | AI9: 190 | AJ9: 210 | AK9: 220 | AL9: 240 | AM9: 250 | AN9: 260 | AO9: 150 | AP9: 190 | AQ9: 210 | AR9: 230 | AS9: 250 | AT9: 260 | AU9: 280 | AV9: 280 | AW9: 210 | AX9: 230 | AY9: 260 | AZ9: 285 | BA9: 300 | BB9: 310 | BC9: 325 | BD9: 330 | BE9: 225 | BF9: 255 | BG9: 275 | BH9: 305 | BI9: 325 | BJ9: 330 | BK9: 345 | BL9: 355
B10: OLYMPIQUE | C10: 1000 | D10: 1000 | E10: 1000 | F10: 1000 | G10: 1000 | H10: 1000 | I10: 1000 | J10: 1000 | K10: 1000 | L10: 1000 | M10: 1000 | N10: 1000 | O10: 1000 | P10: 1000 | Q10: 1000 | R10: 1000 | S10: 1000 | T10: 1000 | U10: 1000 | V10: 1000 | W10: 1000 | X10: 1000 | Y10: 155 | Z10: 175 | AA10: 190 | AB10: 200 | AC10: 205 | AD10: 210 | AE10: 225 | AF10: 1000 | AG10: 1000 | AH10: 1000 | AI10: 1000 | AJ10: 1000 | AK10: 1000 | AL10: 10000 | AM10: 1000 | AN10: 1000 | AO10: 1000 | AP10: 1000 | AQ10: 1000 | AR10: 1000 | AS10: 1000 | AT10: 10000 | AU10: 1000 | AV10: 1000 | AW10: 1000 | AX10: 1000 | AY10: 1000 | AZ10: 10000 | BA10: 1000 | BB10: 1000 | BC10: 1000 | BD10: 10000 | BE10: 240 | BF10: 270 | BG10: 290 | BH10: 320 | BI10: 345 | BJ10: 355 | BK10: 365 | BL10: 375
B11: MINIME | C11: CADET | D11: CADET | E11: JUNIOR | F11: SENIOR | H11: MINIME | I11: CADETTE | J11: CADETTE | K11: JUNIOR | L11: SENIOR
A12: 20.01 | B12: NON | C12: C1 45 | D12: C2 50 | E12: J56 | F12: S56 | G12: 20.01 | H12: NON | I12: FC1 40 | J12: FC2 44 | K12: FJ48 | L12: FS48
A13: 34.01 | B13: NON | C13: C1 45 | D13: C2 50 | E13: J56 | F13: S56 | G13: 30.01 | H13: NON | I13: FC1 40 | J13: FC2 44 | K13: FJ48 | L13: FS48
A14: 38.01 | B14: NON | C14: C1 45 | D14: C2 50 | E14: J56 | F14: S56 | G14: 35.01 | H14: NON | I14: FC1 40 | J14: FC2 44 | K14: FJ48 | L14: FS48
A15: 40.01 | B15: NON | C15: C1 45 | D15: C2 50 | E15: J56 | F15: S56 | G15: 36.01 | H15: NON | I15: FC1 40 | J15: FC2 44 | K15: FJ48 | L15: FS48
A16: 45.01 | B16: NON | C16: C1 50 | D16: C2 50 | E16: J56 | F16: S56 | G16: 40.01 | H16: NON | I16: FC1 44 | J16: FC2 44 | K16: FJ48 | L16: FS48
A17: 50.01 | B17: NON | C17: C1 56 | D17: C2 56 | E17: J56 | F17: S56 | G17: 44.01 | H17: NON | I17: FC1 48 | J17: FC2 48 | K17: FJ48 | L17: FS48
A18: 52.05 | B18: NON | C18: C1 56 | D18: C2 56 | E18: J56 | F18: S56 | G18: 48.01 | H18: NON | I18: FC1 53 | J18: FC2 53 | K18: FJ53 | L18: FS53
A19: 56.01 | B19: NON | C19: C1 62 | D19: C2 62 | E19: J62 | F19: S62 | G19: 53.01 | H19: NON | I19: FC1 58 | J19: FC2 58 | K19: FJ58 | L19: FS58
A20: 62.01 | B20: NON | C20: C1 69 | D20: C2 69 | E20: J69 | F20: S69 | G20: 58.01 | H20: NON | I20: FC1 63 | J20: FC2 63 | K20: FJ63 | L20: FS63
A21: 69.01 | B21: NON | C21: C1 77 | D21: C2 77 | E21: J77 | F21: S77 | G21: 63.01 | H21: NON | I21: FC1 69 | J21: FC2 69 | K21: FJ69 | L21: FS69
A22: 77.01 | B22: NON | C22: C1 85 | D22: C2 85 | E22: J85 | F22: S85 | G22: 69.01 | H22: NON | I22: FC1 +69 | J22: FC2 +69 | K22: FJ75 | L22: FS75
A23: 85.01 | B23: NON | C23: C1 94 | D23: C2 94 | E23: J94 | F23: S94 | G23: 75.01 | H23: NON | I23: FC1 +69 | J23: FC2 +69 | K23: FJ+75 | L23: FS+75
A24: 94.01 | B24: NON | C24: C1 +94 | D24: C2 +94 | E24: J105 | F24: S105 | G24: 110 | H24: NON | I24: FC1 +69 | J24: FC2 +69 | K24: FJ+75 | L24: FS+75
A25: 105.01 | B25: NON | C25: C1 +94 | D25: C2 +94 | E25: J+105 | F25: S+105 | G25: 140 | H25: NON | I25: FC1 +69 | J25: FC2 +69 | K25: FJ+75 | L25: FS+75
A26: 110 | B26: NON | C26: C1 +94 | D26: C2 +94 | E26: J+105 | F26: S+105
A27: 120 | B27: NON | C27: C1 +94 | D27: C2 +94 | E27: J+105 | F27: S+105
A28: 130 | B28: NON | C28: C1 +94 | D28: C2 +94 | E28: J+105 | F28: S+105
A29: 140 | B29: NON | C29: C1 +94 | D29: C2 +94 | E29: J+105 | F29: S+105

Sheet MATCH
F1: EPREUVE : | Q1: DATE :
F2: LIEU : | L2: REGION : | S2: ZONE :
A4: SEXE | B4: ZONE | C4: REG. | D4: CL. | E4: LICENCE | F4: NOMS | G4: Prénoms | H4: AN | I4: POIDS | J4: CLUB | K4: NAT | L4: 1 | M4: 2 | N4: 3 | O4: ARR | P4: 1 | Q4: 2 | R4: 3 | S4: EP-J | T4: Total | V4: SERIE | X4: Catég | Y4: IWF | AB4: DEB | AC4: DEP + | AD4: REG + | AE4: IRG + | AF4: FED + | AG4: NAT + | AH4: INTB + | AI4: INTA + | AJ4: OLY +
A5: F | H5: 1993 | I5: 77 | L5: 105 | O5: =IF(H5="","",IF(MAXA(L5:N5)<=0,0,MAXA(L5:N5))) -> 105 | P5: 135 | S5: =IF(H5="","",IF(MAXA(P5:R5)<=0,0,MAXA(P5:R5))) -> 135 | T5: =IF(H5="","",IF(OR(O5=0,S5=0),0,O5+S5)) -> 240 | V5: =IF(H5="","",AQ5) -> OLY + | W5: =IF(AJ5>=0,AJ5,IF(AI5>=0,AI5,IF(AH5>=0,AH5,IF(AG5>=0,AG5,IF(AF5>=0,AF5,IF(AE5>=0,AE5,IF(AD5>=0,AD5,IF(AC5>=0,AC5,AB5)))))))) -> 15 | X5: =IF(I5="","",IF(A5="H",IF(OR(H5="SEN",H5<1997),VLOOKUP(I5,Feuil1!$A$11:$G$29,6),IF(AND(H5>1996,H5<2000),VLOOKUP(I5,Feuil1!$A$11:$G$29,5),IF(AND(H5>1999,H5<2002),VLOOKUP(I5,Feuil1!$A$11:$G$29,4),IF(AND(H5>2001,H5<2004),VLOOKUP(I5,Feuil1!$A$11:$G$29,3),VLOOKUP(I5,Feuil1!$A$11:$G$29,2))))),IF(OR(H5="SEN",H5<1997),VLOOKUP(I5,Feuil1!$G$11:$L$25,6),IF(AND(H5>1996,H5<2000),VLOOKUP(I5,Feuil1!$G$11:$L$25,5),IF(AND(H5>1999,H5<2002),VLOOKUP(I5,Feuil1!$G$11:$L$25,4),IF(AND(H5>2001,H5<2004),VLOOKUP(I5,Feuil1!$G$11:$L$25,3),VLOOKUP(I5,Feuil1!$G$11:$L$25,2))))))) -> FS+75 | Y5: =IF(I5="","",IF(A5="H",10^(0.794358141*LOG(I5/174.393)^2)*T5,IF(A5="F",10^(0.89726074*LOG(I5/148.026)^2)*T5,""))) -> 283.4672505 | AB5: =T5-HLOOKUP(X5,Feuil1!$C$1:$BL$10,2,FALSE) -> 140 | AC5: =T5-HLOOKUP(X5,Feuil1!$C$1:$BL$10,3,FALSE) -> 130 | AD5: =T5-HLOOKUP(X5,Feuil1!$C$1:$BL$10,4,FALSE) -> 115 | AE5: =T5-HLOOKUP(X5,Feuil1!$C$1:$BL$10,5,FALSE) -> 100 | AF5: =T5-HLOOKUP(X5,Feuil1!$C$1:$BL$10,6,FALSE) -> 90 | AG5: =T5-HLOOKUP(X5,Feuil1!$C$1:$BL$10,7,FALSE) -> 70 | AH5: =T5-HLOOKUP(X5,Feuil1!$C$1:$BL$10,8,FALSE) -> 50 | AI5: =T5-HLOOKUP(X5,Feuil1!$C$1:$BL$10,9,FALSE) -> 30 | AJ5: =T5-HLOOKUP(X5,Feuil1!$C$1:$BL$10,10,FALSE) -> 15 | AQ5: =IF(AJ5>=0,$AJ$4,IF(AI5>=0,$AI$4,IF(AH5>=0,$AH$4,IF(AG5>=0,$AG$4,IF(AF5>=0,$AF$4,IF(AE5>=0,$AE$4,IF(AD5>=0,$AD$4,IF(AC5>=0,$AC$4,$AB$4)))))))) -> OLY +
A6: F | H6: 1994 | I6: 48 | L6: 80 | O6: =IF(H6="","",IF(MAXA(L6:N6)<=0,0,MAXA(L6:N6))) -> 80 | P6: 100 | S6: =IF(H6="","",IF(MAXA(P6:R6)<=0,0,MAXA(P6:R6))) -> 100 | T6: =IF(H6="","",IF(OR(O6=0,S6=0),0,O6+S6)) -> 180 | V6: OLY + | W6: 25 | X6: =IF(I6="","",IF(A6="H",IF(OR(H6="SEN",H6<1997),VLOOKUP(I6,Feuil1!$A$11:$G$29,6),IF(AND(H6>1996,H6<2000),VLOOKUP(I6,Feuil1!$A$11:$G$29,5),IF(AND(H6>1999,H6<2002),VLOOKUP(I6,Feuil1!$A$11:$G$29,4),IF(AND(H6>2001,H6<2004),VLOOKUP(I6,Feuil1!$A$11:$G$29,3),VLOOKUP(I6,Feuil1!$A$11:$G$29,2))))),IF(OR(H6="SEN",H6<1997),VLOOKUP(I6,Feuil1!$G$11:$L$25,6),IF(AND(H6>1996,H6<2000),VLOOKUP(I6,Feuil1!$G$11:$L$25,5),IF(AND(H6>1999,H6<2002),VLOOKUP(I6,Feuil1!$G$11:$L$25,4),IF(AND(H6>2001,H6<2004),VLOOKUP(I6,Feuil1!$G$11:$L$25,3),VLOOKUP(I6,Feuil1!$G$11:$L$25,2))))))) -> FS48 | Y6: 295.0606626 | AB6: =T6-HLOOKUP(X6,Feuil1!$C$1:$BL$10,2,FALSE) -> 125 | AC6: =T6-HLOOKUP(X6,Feuil1!$C$1:$BL$10,3,FALSE) -> 115 | AD6: =T6-HLOOKUP(X6,Feuil1!$C$1:$BL$10,4,FALSE) -> 105 | AE6: =T6-HLOOKUP(X6,Feuil1!$C$1:$BL$10,5,FALSE) -> 95 | AF6: =T6-HLOOKUP(X6,Feuil1!$C$1:$BL$10,6,FALSE) -> 85 | AG6: =T6-HLOOKUP(X6,Feuil1!$C$1:$BL$10,7,FALSE) -> 70 | AH6: =T6-HLOOKUP(X6,Feuil1!$C$1:$BL$10,8,FALSE) -> 55 | AI6: =T6-HLOOKUP(X6,Feuil1!$C$1:$BL$10,9,FALSE) -> 40 | AJ6: =T6-HLOOKUP(X6,Feuil1!$C$1:$BL$10,10,FALSE) -> 25 | AQ6: OLY +
A7: F | H7: 1995 | I7: 53 | L7: 80 | O7: 80 | P7: 100 | S7: 100 | T7: 180 | V7: OLY + | W7: 5 | X7: =IF(I7="","",IF(A7="H",IF(OR(H7="SEN",H7<1997),VLOOKUP(I7,Feuil1!$A$11:$G$29,6),IF(AND(H7>1996,H7<2000),VLOOKUP(I7,Feuil1!$A$11:$G$29,5),IF(AND(H7>1999,H7<2002),VLOOKUP(I7,Feuil1!$A$11:$G$29,4),IF(AND(H7>2001,H7<2004),VLOOKUP(I7,Feuil1!$A$11:$G$29,3),VLOOKUP(I7,Feuil1!$A$11:$G$29,2))))),IF(OR(H7="SEN",H7<1997),VLOOKUP(I7,Feuil1!$G$11:$L$25,6),IF(AND(H7>1996,H7<2000),VLOOKUP(I7,Feuil1!$G$11:$L$25,5),IF(AND(H7>1999,H7<2002),VLOOKUP(I7,Feuil1!$G$11:$L$25,4),IF(AND(H7>2001,H7<2004),VLOOKUP(I7,Feuil1!$G$11:$L$25,3),VLOOKUP(I7,Feuil1!$G$11:$L$25,2))))))) -> FS53 | Y7: 271.5199565 | AB7: =T7-HLOOKUP(X7,Feuil1!$C$1:$BL$10,2,FALSE) -> 115 | AC7: =T7-HLOOKUP(X7,Feuil1!$C$1:$BL$10,3,FALSE) -> 105 | AD7: =T7-HLOOKUP(X7,Feuil1!$C$1:$BL$10,4,FALSE) -> 95 | AE7: =T7-HLOOKUP(X7,Feuil1!$C$1:$BL$10,5,FALSE) -> 85 | AF7: =T7-HLOOKUP(X7,Feuil1!$C$1:$BL$10,6,FALSE) -> 75 | AG7: =T7-HLOOKUP(X7,Feuil1!$C$1:$BL$10,7,FALSE) -> 60 | AH7: =T7-HLOOKUP(X7,Feuil1!$C$1:$BL$10,8,FALSE) -> 40 | AI7: =T7-HLOOKUP(X7,Feuil1!$C$1:$BL$10,9,FALSE) -> 20 | AJ7: =T7-HLOOKUP(X7,Feuil1!$C$1:$BL$10,10,FALSE) -> 5 | AQ7: OLY +
A8: F | H8: 1996 | I8: 69 | L8: 70 | O8: 70 | P8: 95 | S8: 95 | T8: 165 | V8: NAT + | W8: 15 | X8: =IF(I8="","",IF(A8="H",IF(OR(H8="SEN",H8<1997),VLOOKUP(I8,Feuil1!$A$11:$G$29,6),IF(AND(H8>1996,H8<2000),VLOOKUP(I8,Feuil1!$A$11:$G$29,5),IF(AND(H8>1999,H8<2002),VLOOKUP(I8,Feuil1!$A$11:$G$29,4),IF(AND(H8>2001,H8<2004),VLOOKUP(I8,Feuil1!$A$11:$G$29,3),VLOOKUP(I8,Feuil1!$A$11:$G$29,2))))),IF(OR(H8="SEN",H8<1997),VLOOKUP(I8,Feuil1!$G$11:$L$25,6),IF(AND(H8>1996,H8<2000),VLOOKUP(I8,Feuil1!$G$11:$L$25,5),IF(AND(H8>1999,H8<2002),VLOOKUP(I8,Feuil1!$G$11:$L$25,4),IF(AND(H8>2001,H8<2004),VLOOKUP(I8,Feuil1!$G$11:$L$25,3),VLOOKUP(I8,Feuil1!$G$11:$L$25,2))))))) -> FS69 | Y8: 207.0519621 | AB8: =T8-HLOOKUP(X8,Feuil1!$C$1:$BL$10,2,FALSE) -> 85 | AC8: =T8-HLOOKUP(X8,Feuil1!$C$1:$BL$10,3,FALSE) -> 75 | AD8: =T8-HLOOKUP(X8,Feuil1!$C$1:$BL$10,4,FALSE) -> 60 | AE8: =T8-HLOOKUP(X8,Feuil1!$C$1:$BL$10,5,FALSE) -> 45 | AF8: =T8-HLOOKUP(X8,Feuil1!$C$1:$BL$10,6,FALSE) -> 30 | AG8: =T8-HLOOKUP(X8,Feuil1!$C$1:$BL$10,7,FALSE) -> 15 | AH8: =T8-HLOOKUP(X8,Feuil1!$C$1:$BL$10,8,FALSE) -> -5 | AI8: =T8-HLOOKUP(X8,Feuil1!$C$1:$BL$10,9,FALSE) -> -25 | AJ8: =T8-HLOOKUP(X8,Feuil1!$C$1:$BL$10,10,FALSE) -> -40 | AQ8: NAT +
A9: F | H9: 1997 | I9: 75 | L9: 70 | O9: 70 | P9: 85 | S9: 85 | T9: 155 | V9: NAT + | W9: 10 | X9: =IF(I9="","",IF(A9="H",IF(OR(H9="SEN",H9<1997),VLOOKUP(I9,Feuil1!$A$11:$G$29,6),IF(AND(H9>1996,H9<2000),VLOOKUP(I9,Feuil1!$A$11:$G$29,5),IF(AND(H9>1999,H9<2002),VLOOKUP(I9,Feuil1!$A$11:$G$29,4),IF(AND(H9>2001,H9<2004),VLOOKUP(I9,Feuil1!$A$11:$G$29,3),VLOOKUP(I9,Feuil1!$A$11:$G$29,2))))),IF(OR(H9="SEN",H9<1997),VLOOKUP(I9,Feuil1!$G$11:$L$25,6),IF(AND(H9>1996,H9<2000),VLOOKUP(I9,Feuil1!$G$11:$L$25,5),IF(AND(H9>1999,H9<2002),VLOOKUP(I9,Feuil1!$G$11:$L$25,4),IF(AND(H9>2001,H9<2004),VLOOKUP(I9,Feuil1!$G$11:$L$25,3),VLOOKUP(I9,Feuil1!$G$11:$L$25,2))))))) -> FJ75 | Y9: 185.5933387 | AB9: =T9-HLOOKUP(X9,Feuil1!$C$1:$BL$10,2,FALSE) -> 75 | AC9: =T9-HLOOKUP(X9,Feuil1!$C$1:$BL$10,3,FALSE) -> 60 | AD9: =T9-HLOOKUP(X9,Feuil1!$C$1:$BL$10,4,FALSE) -> 50 | AE9: =T9-HLOOKUP(X9,Feuil1!$C$1:$BL$10,5,FALSE) -> 40 | AF9: =T9-HLOOKUP(X9,Feuil1!$C$1:$BL$10,6,FALSE) -> 25 | AG9: =T9-HLOOKUP(X9,Feuil1!$C$1:$BL$10,7,FALSE) -> 10 | AH9: =T9-HLOOKUP(X9,Feuil1!$C$1:$BL$10,8,FALSE) -> -5 | AI9: =T9-HLOOKUP(X9,Feuil1!$C$1:$BL$10,9,FALSE) -> -25 | AJ9: =T9-HLOOKUP(X9,Feuil1!$C$1:$BL$10,10,FALSE) -> -845 | AQ9: NAT +
A10: F | H10: 1998 | I10: 75 | L10: 75 | O10: 75 | P10: 90 | S10: 90 | T10: 165 | V10: INTB + | W10: 5 | X10: =IF(I10="","",IF(A10="H",IF(OR(H10="SEN",H10<1997),VLOOKUP(I10,Feuil1!$A$11:$G$29,6),IF(AND(H10>1996,H10<2000),VLOOKUP(I10,Feuil1!$A$11:$G$29,5),IF(AND(H10>1999,H10<2002),VLOOKUP(I10,Feuil1!$A$11:$G$29,4),IF(AND(H10>2001,H10<2004),VLOOKUP(I10,Feuil1!$A$11:$G$29,3),VLOOKUP(I10,Feuil1!$A$11:$G$29,2))))),IF(OR(H10="SEN",H10<1997),VLOOKUP(I10,Feuil1!$G$11:$L$25,6),IF(AND(H10>1996,H10<2000),VLOOKUP(I10,Feuil1!$G$11:$L$25,5),IF(AND(H10>1999,H10<2002),VLOOKUP(I10,Feuil1!$G$11:$L$25,4),IF(AND(H10>2001,H10<2004),VLOOKUP(I10,Feuil1!$G$11:$L$25,3),VLOOKUP(I10,Feuil1!$G$11:$L$25,2))))))) -> FJ75 | Y10: 197.5671025 | AB10: =T10-HLOOKUP(X10,Feuil1!$C$1:$BL$10,2,FALSE) -> 85 | AC10: =T10-HLOOKUP(X10,Feuil1!$C$1:$BL$10,3,FALSE) -> 70 | AD10: =T10-HLOOKUP(X10,Feuil1!$C$1:$BL$10,4,FALSE) -> 60 | AE10: =T10-HLOOKUP(X10,Feuil1!$C$1:$BL$10,5,FALSE) -> 50 | AF10: =T10-HLOOKUP(X10,Feuil1!$C$1:$BL$10,6,FALSE) -> 35 | AG10: =T10-HLOOKUP(X10,Feuil1!$C$1:$BL$10,7,FALSE) -> 20 | AH10: =T10-HLOOKUP(X10,Feuil1!$C$1:$BL$10,8,FALSE) -> 5 | AI10: =T10-HLOOKUP(X10,Feuil1!$C$1:$BL$10,9,FALSE) -> -15 | AJ10: =T10-HLOOKUP(X10,Feuil1!$C$1:$BL$10,10,FALSE) -> -835 | AQ10: INTB +
A11: F | H11: 1999 | I11: 75 | L11: 55 | O11: 55 | P11: 75 | S11: 75 | T11: 130 | V11: FED + | W11: 0 | X11: =IF(I11="","",IF(A11="H",IF(OR(H11="SEN",H11<1997),VLOOKUP(I11,Feuil1!$A$11:$G$29,6),IF(AND(H11>1996,H11<2000),VLOOKUP(I11,Feuil1!$A$11:$G$29,5),IF(AND(H11>1999,H11<2002),VLOOKUP(I11,Feuil1!$A$11:$G$29,4),IF(AND(H11>2001,H11<2004),VLOOKUP(I11,Feuil1!$A$11:$G$29,3),VLOOKUP(I11,Feuil1!$A$11:$G$29,2))))),IF(OR(H11="SEN",H11<1997),VLOOKUP(I11,Feuil1!$G$11:$L$25,6),IF(AND(H11>1996,H11<2000),VLOOKUP(I11,Feuil1!$G$11:$L$25,5),IF(AND(H11>1999,H11<2002),VLOOKUP(I11,Feuil1!$G$11:$L$25,4),IF(AND(H11>2001,H11<2004),VLOOKUP(I11,Feuil1!$G$11:$L$25,3),VLOOKUP(I11,Feuil1!$G$11:$L$25,2))))))) -> FJ75 | Y11: 155.6589293 | AB11: =T11-HLOOKUP(X11,Feuil1!$C$1:$BL$10,2,FALSE) -> 50 | AC11: =T11-HLOOKUP(X11,Feuil1!$C$1:$BL$10,3,FALSE) -> 35 | AD11: =T11-HLOOKUP(X11,Feuil1!$C$1:$BL$10,4,FALSE) -> 25 | AE11: =T11-HLOOKUP(X11,Feuil1!$C$1:$BL$10,5,FALSE) -> 15 | AF11: =T11-HLOOKUP(X11,Feuil1!$C$1:$BL$10,6,FALSE) -> 0 | AG11: =T11-HLOOKUP(X11,Feuil1!$C$1:$BL$10,7,FALSE) -> -15 | AH11: =T11-HLOOKUP(X11,Feuil1!$C$1:$BL$10,8,FALSE) -> -30 | AI11: =T11-HLOOKUP(X11,Feuil1!$C$1:$BL$10,9,FALSE) -> -50 | AJ11: =T11-HLOOKUP(X11,Feuil1!$C$1:$BL$10,10,FALSE) -> -870 | AQ11: FED +
A12: F | H12: 2000 | I12: 58 | L12: 52 | O12: 52 | P12: 64 | S12: 64 | T12: 116 | V12: INTB + | W12: 1 | X12: =IF(I12="","",IF(A12="H",IF(OR(H12="SEN",H12<1997),VLOOKUP(I12,Feuil1!$A$11:$G$29,6),IF(AND(H12>1996,H12<2000),VLOOKUP(I12,Feuil1!$A$11:$G$29,5),IF(AND(H12>1999,H12<2002),VLOOKUP(I12,Feuil1!$A$11:$G$29,4),IF(AND(H12>2001,H12<2004),VLOOKUP(I12,Feuil1!$A$11:$G$29,3),VLOOKUP(I12,Feuil1!$A$11:$G$29,2))))),IF(OR(H12="SEN",H12<1997),VLOOKUP(I12,Feuil1!$G$11:$L$25,6),IF(AND(H12>1996,H12<2000),VLOOKUP(I12,Feuil1!$G$11:$L$25,5),IF(AND(H12>1999,H12<2002),VLOOKUP(I12,Feuil1!$G$11:$L$25,4),IF(AND(H12>2001,H12<2004),VLOOKUP(I12,Feuil1!$G$11:$L$25,3),VLOOKUP(I12,Feuil1!$G$11:$L$25,2))))))) -> FC2 58 | Y12: 163.3136987 | AB12: =T12-HLOOKUP(X12,Feuil1!$C$1:$BL$10,2,FALSE) -> 66 | AC12: =T12-HLOOKUP(X12,Feuil1!$C$1:$BL$10,3,FALSE) -> 56 | AD12: =T12-HLOOKUP(X12,Feuil1!$C$1:$BL$10,4,FALSE) -> 46 | AE12: =T12-HLOOKUP(X12,Feuil1!$C$1:$BL$10,5,FALSE) -> 36 | AF12: =T12-HLOOKUP(X12,Feuil1!$C$1:$BL$10,6,FALSE) -> 26 | AG12: =T12-HLOOKUP(X12,Feuil1!$C$1:$BL$10,7,FALSE) -> 16 | AH12: =T12-HLOOKUP(X12,Feuil1!$C$1:$BL$10,8,FALSE) -> 1 | AI12: =T12-HLOOKUP(X12,Feuil1!$C$1:$BL$10,9,FALSE) -> -14 | AJ12: =T12-HLOOKUP(X12,Feuil1!$C$1:$BL$10,10,FALSE) -> -884 | AQ12: INTB +
A13: F | H13: 2001 | I13: 44 | L13: 40 | O13: 40 | P13: 52 | S13: 52 | T13: 92 | V13: INTB + | W13: 2 | X13: =IF(I13="","",IF(A13="H",IF(OR(H13="SEN",H13<1997),VLOOKUP(I13,Feuil1!$A$11:$G$29,6),IF(AND(H13>1996,H13<2000),VLOOKUP(I13,Feuil1!$A$11:$G$29,5),IF(AND(H13>1999,H13<2002),VLOOKUP(I13,Feuil1!$A$11:$G$29,4),IF(AND(H13>2001,H13<2004),VLOOKUP(I13,Feuil1!$A$11:$G$29,3),VLOOKUP(I13,Feuil1!$A$11:$G$29,2))))),IF(OR(H13="SEN",H13<1997),VLOOKUP(I13,Feuil1!$G$11:$L$25,6),IF(AND(H13>1996,H13<2000),VLOOKUP(I13,Feuil1!$G$11:$L$25,5),IF(AND(H13>1999,H13<2002),VLOOKUP(I13,Feuil1!$G$11:$L$25,4),IF(AND(H13>2001,H13<2004),VLOOKUP(I13,Feuil1!$G$11:$L$25,3),VLOOKUP(I13,Feuil1!$G$11:$L$25,2))))))) -> FC2 44 | Y13: 163.2580932 | AB13: =T13-HLOOKUP(X13,Feuil1!$C$1:$BL$10,2,FALSE) -> 62 | AC13: =T13-HLOOKUP(X13,Feuil1!$C$1:$BL$10,3,FALSE) -> 52 | AD13: =T13-HLOOKUP(X13,Feuil1!$C$1:$BL$10,4,FALSE) -> 42 | AE13: =T13-HLOOKUP(X13,Feuil1!$C$1:$BL$10,5,FALSE) -> 32 | AF13: =T13-HLOOKUP(X13,Feuil1!$C$1:$BL$10,6,FALSE) -> 22 | AG13: =T13-HLOOKUP(X13,Feuil1!$C$1:$BL$10,7,FALSE) -> 12 | AH13: =T13-HLOOKUP(X13,Feuil1!$C$1:$BL$10,8,FALSE) -> 2 | AI13: =T13-HLOOKUP(X13,Feuil1!$C$1:$BL$10,9,FALSE) -> -8 | AJ13: =T13-HLOOKUP(X13,Feuil1!$C$1:$BL$10,10,FALSE) -> -908 | AQ13: INTB +
A14: F | H14: 2002 | I14: 75 | L14: 85 | O14: =IF(H14="","",IF(MAXA(L14:N14)<=0,0,MAXA(L14:N14))) -> 85 | P14: 105 | S14: =IF(H14="","",IF(MAXA(P14:R14)<=0,0,MAXA(P14:R14))) -> 105 | T14: =IF(H14="","",IF(OR(O14=0,S14=0),0,O14+S14)) -> 190 | V14: INTA + | W14: 45 | X14: =IF(I14="","",IF(A14="H",IF(OR(H14="SEN",H14<1997),VLOOKUP(I14,Feuil1!$A$11:$G$29,6),IF(AND(H14>1996,H14<2000),VLOOKUP(I14,Feuil1!$A$11:$G$29,5),IF(AND(H14>1999,H14<2002),VLOOKUP(I14,Feuil1!$A$11:$G$29,4),IF(AND(H14>2001,H14<2004),VLOOKUP(I14,Feuil1!$A$11:$G$29,3),VLOOKUP(I14,Feuil1!$A$11:$G$29,2))))),IF(OR(H14="SEN",H14<1997),VLOOKUP(I14,Feuil1!$G$11:$L$25,6),IF(AND(H14>1996,H14<2000),VLOOKUP(I14,Feuil1!$G$11:$L$25,5),IF(AND(H14>1999,H14<2002),VLOOKUP(I14,Feuil1!$G$11:$L$25,4),IF(AND(H14>2001,H14<2004),VLOOKUP(I14,Feuil1!$G$11:$L$25,3),VLOOKUP(I14,Feuil1!$G$11:$L$25,2))))))) -> FC1 +69 | Y14: 227.501512 | AB14: =T14-HLOOKUP(X14,Feuil1!$C$1:$BL$10,2,FALSE) -> 130 | AC14: =T14-HLOOKUP(X14,Feuil1!$C$1:$BL$10,3,FALSE) -> 120 | AD14: =T14-HLOOKUP(X14,Feuil1!$C$1:$BL$10,4,FALSE) -> 110 | AE14: =T14-HLOOKUP(X14,Feuil1!$C$1:$BL$10,5,FALSE) -> 95 | AF14: =T14-HLOOKUP(X14,Feuil1!$C$1:$BL$10,6,FALSE) -> 85 | AG14: =T14-HLOOKUP(X14,Feuil1!$C$1:$BL$10,7,FALSE) -> 75 | AH14: =T14-HLOOKUP(X14,Feuil1!$C$1:$BL$10,8,FALSE) -> 60 | AI14: =T14-HLOOKUP(X14,Feuil1!$C$1:$BL$10,9,FALSE) -> 45 | AJ14: =T14-HLOOKUP(X14,Feuil1!$C$1:$BL$10,10,FALSE) -> -810 | AQ14: INTA +
A15: F | X15: =IF(I15="","",IF(A15="H",IF(OR(H15="SEN",H15<1997),VLOOKUP(I15,Feuil1!$A$11:$G$29,6),IF(AND(H15>1996,H15<2000),VLOOKUP(I15,Feuil1!$A$11:$G$29,5),IF(AND(H15>1999,H15<2002),VLOOKUP(I15,Feuil1!$A$11:$G$29,4),IF(AND(H15>2001,H15<2004),VLOOKUP(I15,Feuil1!$A$11:$G$29,3),VLOOKUP(I15,Feuil1!$A$11:$G$29,2))))),IF(OR(H15="SEN",H15<1997),VLOOKUP(I15,Feuil1!$G$11:$L$25,6),IF(AND(H15>1996,H15<2000),VLOOKUP(I15,Feuil1!$G$11:$L$25,5),IF(AND(H15>1999,H15<2002),VLOOKUP(I15,Feuil1!$G$11:$L$25,4),IF(AND(H15>2001,H15<2004),VLOOKUP(I15,Feuil1!$G$11:$L$25,3),VLOOKUP(I15,Feuil1!$G$11:$L$25,2))))))) ->  | AB15: =T15-HLOOKUP(X15,Feuil1!$C$1:$BL$10,2,FALSE) ->  | AC15: =T15-HLOOKUP(X15,Feuil1!$C$1:$BL$10,3,FALSE) ->  | AD15: =T15-HLOOKUP(X15,Feuil1!$C$1:$BL$10,4,FALSE) ->  | AE15: =T15-HLOOKUP(X15,Feuil1!$C$1:$BL$10,5,FALSE) ->  | AF15: =T15-HLOOKUP(X15,Feuil1!$C$1:$BL$10,6,FALSE) ->  | AG15: =T15-HLOOKUP(X15,Feuil1!$C$1:$BL$10,7,FALSE) ->  | AH15: =T15-HLOOKUP(X15,Feuil1!$C$1:$BL$10,8,FALSE) ->  | AI15: =T15-HLOOKUP(X15,Feuil1!$C$1:$BL$10,9,FALSE) ->  | AJ15: =T15-HLOOKUP(X15,Feuil1!$C$1:$BL$10,10,FALSE) -> 
A16: F | X16: =IF(I16="","",IF(A16="H",IF(OR(H16="SEN",H16<1997),VLOOKUP(I16,Feuil1!$A$11:$G$29,6),IF(AND(H16>1996,H16<2000),VLOOKUP(I16,Feuil1!$A$11:$G$29,5),IF(AND(H16>1999,H16<2002),VLOOKUP(I16,Feuil1!$A$11:$G$29,4),IF(AND(H16>2001,H16<2004),VLOOKUP(I16,Feuil1!$A$11:$G$29,3),VLOOKUP(I16,Feuil1!$A$11:$G$29,2))))),IF(OR(H16="SEN",H16<1997),VLOOKUP(I16,Feuil1!$G$11:$L$25,6),IF(AND(H16>1996,H16<2000),VLOOKUP(I16,Feuil1!$G$11:$L$25,5),IF(AND(H16>1999,H16<2002),VLOOKUP(I16,Feuil1!$G$11:$L$25,4),IF(AND(H16>2001,H16<2004),VLOOKUP(I16,Feuil1!$G$11:$L$25,3),VLOOKUP(I16,Feuil1!$G$11:$L$25,2))))))) ->  | AB16: =T16-HLOOKUP(X16,Feuil1!$C$1:$BL$10,2,FALSE) ->  | AC16: =T16-HLOOKUP(X16,Feuil1!$C$1:$BL$10,3,FALSE) ->  | AD16: =T16-HLOOKUP(X16,Feuil1!$C$1:$BL$10,4,FALSE) ->  | AE16: =T16-HLOOKUP(X16,Feuil1!$C$1:$BL$10,5,FALSE) ->  | AF16: =T16-HLOOKUP(X16,Feuil1!$C$1:$BL$10,6,FALSE) ->  | AG16: =T16-HLOOKUP(X16,Feuil1!$C$1:$BL$10,7,FALSE) ->  | AH16: =T16-HLOOKUP(X16,Feuil1!$C$1:$BL$10,8,FALSE) ->  | AI16: =T16-HLOOKUP(X16,Feuil1!$C$1:$BL$10,9,FALSE) ->  | AJ16: =T16-HLOOKUP(X16,Feuil1!$C$1:$BL$10,10,FALSE) -> 
A17: F | X17: =IF(I17="","",IF(A17="H",IF(OR(H17="SEN",H17<1997),VLOOKUP(I17,Feuil1!$A$11:$G$29,6),IF(AND(H17>1996,H17<2000),VLOOKUP(I17,Feuil1!$A$11:$G$29,5),IF(AND(H17>1999,H17<2002),VLOOKUP(I17,Feuil1!$A$11:$G$29,4),IF(AND(H17>2001,H17<2004),VLOOKUP(I17,Feuil1!$A$11:$G$29,3),VLOOKUP(I17,Feuil1!$A$11:$G$29,2))))),IF(OR(H17="SEN",H17<1997),VLOOKUP(I17,Feuil1!$G$11:$L$25,6),IF(AND(H17>1996,H17<2000),VLOOKUP(I17,Feuil1!$G$11:$L$25,5),IF(AND(H17>1999,H17<2002),VLOOKUP(I17,Feuil1!$G$11:$L$25,4),IF(AND(H17>2001,H17<2004),VLOOKUP(I17,Feuil1!$G$11:$L$25,3),VLOOKUP(I17,Feuil1!$G$11:$L$25,2))))))) ->  | AB17: =T17-HLOOKUP(X17,Feuil1!$C$1:$BL$10,2,FALSE) ->  | AC17: =T17-HLOOKUP(X17,Feuil1!$C$1:$BL$10,3,FALSE) ->  | AD17: =T17-HLOOKUP(X17,Feuil1!$C$1:$BL$10,4,FALSE) ->  | AE17: =T17-HLOOKUP(X17,Feuil1!$C$1:$BL$10,5,FALSE) ->  | AF17: =T17-HLOOKUP(X17,Feuil1!$C$1:$BL$10,6,FALSE) ->  | AG17: =T17-HLOOKUP(X17,Feuil1!$C$1:$BL$10,7,FALSE) ->  | AH17: =T17-HLOOKUP(X17,Feuil1!$C$1:$BL$10,8,FALSE) ->  | AI17: =T17-HLOOKUP(X17,Feuil1!$C$1:$BL$10,9,FALSE) ->  | AJ17: =T17-HLOOKUP(X17,Feuil1!$C$1:$BL$10,10,FALSE) -> 
A18: H | H18: 2002 | I18: 69 | L18: 95 | O18: =IF(H18="","",IF(MAXA(L18:N18)<=0,0,MAXA(L18:N18))) -> 95 | P18: 110 | S18: =IF(H18="","",IF(MAXA(P18:R18)<=0,0,MAXA(P18:R18))) -> 110 | T18: =IF(H18="","",IF(OR(O18=0,S18=0),0,O18+S18)) -> 205 | V18: INTB + | W18: 15 | X18: =IF(I18="","",IF(A18="H",IF(OR(H18="SEN",H18<1997),VLOOKUP(I18,Feuil1!$A$11:$G$29,6),IF(AND(H18>1996,H18<2000),VLOOKUP(I18,Feuil1!$A$11:$G$29,5),IF(AND(H18>1999,H18<2002),VLOOKUP(I18,Feuil1!$A$11:$G$29,4),IF(AND(H18>2001,H18<2004),VLOOKUP(I18,Feuil1!$A$11:$G$29,3),VLOOKUP(I18,Feuil1!$A$11:$G$29,2))))),IF(OR(H18="SEN",H18<1997),VLOOKUP(I18,Feuil1!$G$11:$L$25,6),IF(AND(H18>1996,H18<2000),VLOOKUP(I18,Feuil1!$G$11:$L$25,5),IF(AND(H18>1999,H18<2002),VLOOKUP(I18,Feuil1!$G$11:$L$25,4),IF(AND(H18>2001,H18<2004),VLOOKUP(I18,Feuil1!$G$11:$L$25,3),VLOOKUP(I18,Feuil1!$G$11:$L$25,2))))))) -> C1 69 | Y18: 275.7782085 | AB18: =T18-HLOOKUP(X18,Feuil1!$C$1:$BL$10,2,FALSE) -> 120 | AC18: =T18-HLOOKUP(X18,Feuil1!$C$1:$BL$10,3,FALSE) -> 100 | AD18: =T18-HLOOKUP(X18,Feuil1!$C$1:$BL$10,4,FALSE) -> 90 | AE18: =T18-HLOOKUP(X18,Feuil1!$C$1:$BL$10,5,FALSE) -> 75 | AF18: =T18-HLOOKUP(X18,Feuil1!$C$1:$BL$10,6,FALSE) -> 55 | AG18: =T18-HLOOKUP(X18,Feuil1!$C$1:$BL$10,7,FALSE) -> 35 | AH18: =T18-HLOOKUP(X18,Feuil1!$C$1:$BL$10,8,FALSE) -> 15 | AI18: =T18-HLOOKUP(X18,Feuil1!$C$1:$BL$10,9,FALSE) -> -5 | AJ18: =T18-HLOOKUP(X18,Feuil1!$C$1:$BL$10,10,FALSE) -> -795 | AQ18: INTB +
A19: H | H19: 2003 | I19: 63 | L19: 70 | O19: 70 | P19: 85 | S19: 85 | T19: 155 | V19: FED + | W19: 5 | X19: =IF(I19="","",IF(A19="H",IF(OR(H19="SEN",H19<1997),VLOOKUP(I19,Feuil1!$A$11:$G$29,6),IF(AND(H19>1996,H19<2000),VLOOKUP(I19,Feuil1!$A$11:$G$29,5),IF(AND(H19>1999,H19<2002),VLOOKUP(I19,Feuil1!$A$11:$G$29,4),IF(AND(H19>2001,H19<2004),VLOOKUP(I19,Feuil1!$A$11:$G$29,3),VLOOKUP(I19,Feuil1!$A$11:$G$29,2))))),IF(OR(H19="SEN",H19<1997),VLOOKUP(I19,Feuil1!$G$11:$L$25,6),IF(AND(H19>1996,H19<2000),VLOOKUP(I19,Feuil1!$G$11:$L$25,5),IF(AND(H19>1999,H19<2002),VLOOKUP(I19,Feuil1!$G$11:$L$25,4),IF(AND(H19>2001,H19<2004),VLOOKUP(I19,Feuil1!$G$11:$L$25,3),VLOOKUP(I19,Feuil1!$G$11:$L$25,2))))))) -> C1 69 | Y19: 221.6425187 | AB19: =T19-HLOOKUP(X19,Feuil1!$C$1:$BL$10,2,FALSE) -> 70 | AC19: =T19-HLOOKUP(X19,Feuil1!$C$1:$BL$10,3,FALSE) -> 50 | AD19: =T19-HLOOKUP(X19,Feuil1!$C$1:$BL$10,4,FALSE) -> 40 | AE19: =T19-HLOOKUP(X19,Feuil1!$C$1:$BL$10,5,FALSE) -> 25 | AF19: =T19-HLOOKUP(X19,Feuil1!$C$1:$BL$10,6,FALSE) -> 5 | AG19: =T19-HLOOKUP(X19,Feuil1!$C$1:$BL$10,7,FALSE) -> -15 | AH19: =T19-HLOOKUP(X19,Feuil1!$C$1:$BL$10,8,FALSE) -> -35 | AI19: =T19-HLOOKUP(X19,Feuil1!$C$1:$BL$10,9,FALSE) -> -55 | AJ19: =T19-HLOOKUP(X19,Feuil1!$C$1:$BL$10,10,FALSE) -> -845 | AQ19: FED +
A20: H | H20: 1999 | I20: 75 | L20: 65 | O20: 65 | P20: 85 | S20: 85 | T20: 150 | V20: DEP + | W20: 0 | X20: =IF(I20="","",IF(A20="H",IF(OR(H20="SEN",H20<1997),VLOOKUP(I20,Feuil1!$A$11:$G$29,6),IF(AND(H20>1996,H20<2000),VLOOKUP(I20,Feuil1!$A$11:$G$29,5),IF(AND(H20>1999,H20<2002),VLOOKUP(I20,Feuil1!$A$11:$G$29,4),IF(AND(H20>2001,H20<2004),VLOOKUP(I20,Feuil1!$A$11:$G$29,3),VLOOKUP(I20,Feuil1!$A$11:$G$29,2))))),IF(OR(H20="SEN",H20<1997),VLOOKUP(I20,Feuil1!$G$11:$L$25,6),IF(AND(H20>1996,H20<2000),VLOOKUP(I20,Feuil1!$G$11:$L$25,5),IF(AND(H20>1999,H20<2002),VLOOKUP(I20,Feuil1!$G$11:$L$25,4),IF(AND(H20>2001,H20<2004),VLOOKUP(I20,Feuil1!$G$11:$L$25,3),VLOOKUP(I20,Feuil1!$G$11:$L$25,2))))))) -> J77 | Y20: 191.7663823 | AB20: =T20-HLOOKUP(X20,Feuil1!$C$1:$BL$10,2,FALSE) -> 20 | AC20: =T20-HLOOKUP(X20,Feuil1!$C$1:$BL$10,3,FALSE) -> 0 | AD20: =T20-HLOOKUP(X20,Feuil1!$C$1:$BL$10,4,FALSE) -> -20 | AE20: =T20-HLOOKUP(X20,Feuil1!$C$1:$BL$10,5,FALSE) -> -40 | AF20: =T20-HLOOKUP(X20,Feuil1!$C$1:$BL$10,6,FALSE) -> -60 | AG20: =T20-HLOOKUP(X20,Feuil1!$C$1:$BL$10,7,FALSE) -> -90 | AH20: =T20-HLOOKUP(X20,Feuil1!$C$1:$BL$10,8,FALSE) -> -110 | AI20: =T20-HLOOKUP(X20,Feuil1!$C$1:$BL$10,9,FALSE) -> -135 | AJ20: =T20-HLOOKUP(X20,Feuil1!$C$1:$BL$10,10,FALSE) -> -9850 | AQ20: DEP +
A21: H | H21: 1998 | I21: 69 | L21: 100 | O21: 100 | P21: 120 | S21: 120 | T21: 220 | V21: NAT + | W21: 0 | X21: =IF(I21="","",IF(A21="H",IF(OR(H21="SEN",H21<1997),VLOOKUP(I21,Feuil1!$A$11:$G$29,6),IF(AND(H21>1996,H21<2000),VLOOKUP(I21,Feuil1!$A$11:$G$29,5),IF(AND(H21>1999,H21<2002),VLOOKUP(I21,Feuil1!$A$11:$G$29,4),IF(AND(H21>2001,H21<2004),VLOOKUP(I21,Feuil1!$A$11:$G$29,3),VLOOKUP(I21,Feuil1!$A$11:$G$29,2))))),IF(OR(H21="SEN",H21<1997),VLOOKUP(I21,Feuil1!$G$11:$L$25,6),IF(AND(H21>1996,H21<2000),VLOOKUP(I21,Feuil1!$G$11:$L$25,5),IF(AND(H21>1999,H21<2002),VLOOKUP(I21,Feuil1!$G$11:$L$25,4),IF(AND(H21>2001,H21<2004),VLOOKUP(I21,Feuil1!$G$11:$L$25,3),VLOOKUP(I21,Feuil1!$G$11:$L$25,2))))))) -> J69 | Y21: 295.9571018 | AB21: =T21-HLOOKUP(X21,Feuil1!$C$1:$BL$10,2,FALSE) -> 110 | AC21: =T21-HLOOKUP(X21,Feuil1!$C$1:$BL$10,3,FALSE) -> 90 | AD21: =T21-HLOOKUP(X21,Feuil1!$C$1:$BL$10,4,FALSE) -> 70 | AE21: =T21-HLOOKUP(X21,Feuil1!$C$1:$BL$10,5,FALSE) -> 50 | AF21: =T21-HLOOKUP(X21,Feuil1!$C$1:$BL$10,6,FALSE) -> 30 | AG21: =T21-HLOOKUP(X21,Feuil1!$C$1:$BL$10,7,FALSE) -> 0 | AH21: =T21-HLOOKUP(X21,Feuil1!$C$1:$BL$10,8,FALSE) -> -20 | AI21: =T21-HLOOKUP(X21,Feuil1!$C$1:$BL$10,9,FALSE) -> -40 | AJ21: =T21-HLOOKUP(X21,Feuil1!$C$1:$BL$10,10,FALSE) -> -780 | AQ21: NAT +
A22: H | H22: 1997 | I22: 69 | L22: 90 | O22: 90 | P22: 100 | S22: 100 | T22: 190 | V22: FED + | W22: 0 | X22: =IF(I22="","",IF(A22="H",IF(OR(H22="SEN",H22<1997),VLOOKUP(I22,Feuil1!$A$11:$G$29,6),IF(AND(H22>1996,H22<2000),VLOOKUP(I22,Feuil1!$A$11:$G$29,5),IF(AND(H22>1999,H22<2002),VLOOKUP(I22,Feuil1!$A$11:$G$29,4),IF(AND(H22>2001,H22<2004),VLOOKUP(I22,Feuil1!$A$11:$G$29,3),VLOOKUP(I22,Feuil1!$A$11:$G$29,2))))),IF(OR(H22="SEN",H22<1997),VLOOKUP(I22,Feuil1!$G$11:$L$25,6),IF(AND(H22>1996,H22<2000),VLOOKUP(I22,Feuil1!$G$11:$L$25,5),IF(AND(H22>1999,H22<2002),VLOOKUP(I22,Feuil1!$G$11:$L$25,4),IF(AND(H22>2001,H22<2004),VLOOKUP(I22,Feuil1!$G$11:$L$25,3),VLOOKUP(I22,Feuil1!$G$11:$L$25,2))))))) -> J69 | Y22: 255.5993152 | AB22: =T22-HLOOKUP(X22,Feuil1!$C$1:$BL$10,2,FALSE) -> 80 | AC22: =T22-HLOOKUP(X22,Feuil1!$C$1:$BL$10,3,FALSE) -> 60 | AD22: =T22-HLOOKUP(X22,Feuil1!$C$1:$BL$10,4,FALSE) -> 40 | AE22: =T22-HLOOKUP(X22,Feuil1!$C$1:$BL$10,5,FALSE) -> 20 | AF22: =T22-HLOOKUP(X22,Feuil1!$C$1:$BL$10,6,FALSE) -> 0 | AG22: =T22-HLOOKUP(X22,Feuil1!$C$1:$BL$10,7,FALSE) -> -30 | AH22: =T22-HLOOKUP(X22,Feuil1!$C$1:$BL$10,8,FALSE) -> -50 | AI22: =T22-HLOOKUP(X22,Feuil1!$C$1:$BL$10,9,FALSE) -> -70 | AJ22: =T22-HLOOKUP(X22,Feuil1!$C$1:$BL$10,10,FALSE) -> -810 | AQ22: FED +
A23: H | H23: 1996 | I23: 53 | L23: 40 | O23: 40 | P23: 50 | S23: 50 | T23: 90 | V23: DEB | W23: -5 | X23: =IF(I23="","",IF(A23="H",IF(OR(H23="SEN",H23<1997),VLOOKUP(I23,Feuil1!$A$11:$G$29,6),IF(AND(H23>1996,H23<2000),VLOOKUP(I23,Feuil1!$A$11:$G$29,5),IF(AND(H23>1999,H23<2002),VLOOKUP(I23,Feuil1!$A$11:$G$29,4),IF(AND(H23>2001,H23<2004),VLOOKUP(I23,Feuil1!$A$11:$G$29,3),VLOOKUP(I23,Feuil1!$A$11:$G$29,2))))),IF(OR(H23="SEN",H23<1997),VLOOKUP(I23,Feuil1!$G$11:$L$25,6),IF(AND(H23>1996,H23<2000),VLOOKUP(I23,Feuil1!$G$11:$L$25,5),IF(AND(H23>1999,H23<2002),VLOOKUP(I23,Feuil1!$G$11:$L$25,4),IF(AND(H23>2001,H23<2004),VLOOKUP(I23,Feuil1!$G$11:$L$25,3),VLOOKUP(I23,Feuil1!$G$11:$L$25,2))))))) -> S56 | Y23: 146.8161078 | AB23: =T23-HLOOKUP(X23,Feuil1!$C$1:$BL$10,2,FALSE) -> -5 | AC23: =T23-HLOOKUP(X23,Feuil1!$C$1:$BL$10,3,FALSE) -> -25 | AD23: =T23-HLOOKUP(X23,Feuil1!$C$1:$BL$10,4,FALSE) -> -40 | AE23: =T23-HLOOKUP(X23,Feuil1!$C$1:$BL$10,5,FALSE) -> -55 | AF23: =T23-HLOOKUP(X23,Feuil1!$C$1:$BL$10,6,FALSE) -> -80 | AG23: =T23-HLOOKUP(X23,Feuil1!$C$1:$BL$10,7,FALSE) -> -100 | AH23: =T23-HLOOKUP(X23,Feuil1!$C$1:$BL$10,8,FALSE) -> -120 | AI23: =T23-HLOOKUP(X23,Feuil1!$C$1:$BL$10,9,FALSE) -> -135 | AJ23: =T23-HLOOKUP(X23,Feuil1!$C$1:$BL$10,10,FALSE) -> -150 | AQ23: DEB
A24: H | H24: 1995 | I24: 69 | L24: 100 | O24: 100 | P24: 110 | S24: 110 | T24: 210 | V24: IRG + | W24: 20 | X24: =IF(I24="","",IF(A24="H",IF(OR(H24="SEN",H24<1997),VLOOKUP(I24,Feuil1!$A$11:$G$29,6),IF(AND(H24>1996,H24<2000),VLOOKUP(I24,Feuil1!$A$11:$G$29,5),IF(AND(H24>1999,H24<2002),VLOOKUP(I24,Feuil1!$A$11:$G$29,4),IF(AND(H24>2001,H24<2004),VLOOKUP(I24,Feuil1!$A$11:$G$29,3),VLOOKUP(I24,Feuil1!$A$11:$G$29,2))))),IF(OR(H24="SEN",H24<1997),VLOOKUP(I24,Feuil1!$G$11:$L$25,6),IF(AND(H24>1996,H24<2000),VLOOKUP(I24,Feuil1!$G$11:$L$25,5),IF(AND(H24>1999,H24<2002),VLOOKUP(I24,Feuil1!$G$11:$L$25,4),IF(AND(H24>2001,H24<2004),VLOOKUP(I24,Feuil1!$G$11:$L$25,3),VLOOKUP(I24,Feuil1!$G$11:$L$25,2))))))) -> S69 | Y24: 282.5045062 | AB24: =T24-HLOOKUP(X24,Feuil1!$C$1:$BL$10,2,FALSE) -> 80 | AC24: =T24-HLOOKUP(X24,Feuil1!$C$1:$BL$10,3,FALSE) -> 60 | AD24: =T24-HLOOKUP(X24,Feuil1!$C$1:$BL$10,4,FALSE) -> 40 | AE24: =T24-HLOOKUP(X24,Feuil1!$C$1:$BL$10,5,FALSE) -> 20 | AF24: =T24-HLOOKUP(X24,Feuil1!$C$1:$BL$10,6,FALSE) -> -10 | AG24: =T24-HLOOKUP(X24,Feuil1!$C$1:$BL$10,7,FALSE) -> -30 | AH24: =T24-HLOOKUP(X24,Feuil1!$C$1:$BL$10,8,FALSE) -> -50 | AI24: =T24-HLOOKUP(X24,Feuil1!$C$1:$BL$10,9,FALSE) -> -65 | AJ24: =T24-HLOOKUP(X24,Feuil1!$C$1:$BL$10,10,FALSE) -> -80 | AQ24: IRG +
A25: H | H25: 1994 | I25: 69 | L25: 100 | O25: 100 | P25: 120 | S25: 120 | T25: 220 | V25: FED + | W25: 0 | X25: =IF(I25="","",IF(A25="H",IF(OR(H25="SEN",H25<1997),VLOOKUP(I25,Feuil1!$A$11:$G$29,6),IF(AND(H25>1996,H25<2000),VLOOKUP(I25,Feuil1!$A$11:$G$29,5),IF(AND(H25>1999,H25<2002),VLOOKUP(I25,Feuil1!$A$11:$G$29,4),IF(AND(H25>2001,H25<2004),VLOOKUP(I25,Feuil1!$A$11:$G$29,3),VLOOKUP(I25,Feuil1!$A$11:$G$29,2))))),IF(OR(H25="SEN",H25<1997),VLOOKUP(I25,Feuil1!$G$11:$L$25,6),IF(AND(H25>1996,H25<2000),VLOOKUP(I25,Feuil1!$G$11:$L$25,5),IF(AND(H25>1999,H25<2002),VLOOKUP(I25,Feuil1!$G$11:$L$25,4),IF(AND(H25>2001,H25<2004),VLOOKUP(I25,Feuil1!$G$11:$L$25,3),VLOOKUP(I25,Feuil1!$G$11:$L$25,2))))))) -> S69 | Y25: 295.9571018 | AB25: =T25-HLOOKUP(X25,Feuil1!$C$1:$BL$10,2,FALSE) -> 90 | AC25: =T25-HLOOKUP(X25,Feuil1!$C$1:$BL$10,3,FALSE) -> 70 | AD25: =T25-HLOOKUP(X25,Feuil1!$C$1:$BL$10,4,FALSE) -> 50 | AE25: =T25-HLOOKUP(X25,Feuil1!$C$1:$BL$10,5,FALSE) -> 30 | AF25: =T25-HLOOKUP(X25,Feuil1!$C$1:$BL$10,6,FALSE) -> 0 | AG25: =T25-HLOOKUP(X25,Feuil1!$C$1:$BL$10,7,FALSE) -> -20 | AH25: =T25-HLOOKUP(X25,Feuil1!$C$1:$BL$10,8,FALSE) -> -40 | AI25: =T25-HLOOKUP(X25,Feuil1!$C$1:$BL$10,9,FALSE) -> -55 | AJ25: =T25-HLOOKUP(X25,Feuil1!$C$1:$BL$10,10,FALSE) -> -70 | AQ25: FED +
A26: H | H26: 2000 | I26: 44.1 | L26: 60 | O26: 60 | P26: 75 | S26: 75 | T26: 135 | V26: INTB + | W26: 0 | X26: =IF(I26="","",IF(A26="H",IF(OR(H26="SEN",H26<1997),VLOOKUP(I26,Feuil1!$A$11:$G$29,6),IF(AND(H26>1996,H26<2000),VLOOKUP(I26,Feuil1!$A$11:$G$29,5),IF(AND(H26>1999,H26<2002),VLOOKUP(I26,Feuil1!$A$11:$G$29,4),IF(AND(H26>2001,H26<2004),VLOOKUP(I26,Feuil1!$A$11:$G$29,3),VLOOKUP(I26,Feuil1!$A$11:$G$29,2))))),IF(OR(H26="SEN",H26<1997),VLOOKUP(I26,Feuil1!$G$11:$L$25,6),IF(AND(H26>1996,H26<2000),VLOOKUP(I26,Feuil1!$G$11:$L$25,5),IF(AND(H26>1999,H26<2002),VLOOKUP(I26,Feuil1!$G$11:$L$25,4),IF(AND(H26>2001,H26<2004),VLOOKUP(I26,Feuil1!$G$11:$L$25,3),VLOOKUP(I26,Feuil1!$G$11:$L$25,2))))))) -> C2 50 | Y26: 259.1409001 | AB26: =T26-HLOOKUP(X26,Feuil1!$C$1:$BL$10,2,FALSE) -> 90 | AC26: =T26-HLOOKUP(X26,Feuil1!$C$1:$BL$10,3,FALSE) -> 70 | AD26: =T26-HLOOKUP(X26,Feuil1!$C$1:$BL$10,4,FALSE) -> 55 | AE26: =T26-HLOOKUP(X26,Feuil1!$C$1:$BL$10,5,FALSE) -> 40 | AF26: =T26-HLOOKUP(X26,Feuil1!$C$1:$BL$10,6,FALSE) -> 25 | AG26: =T26-HLOOKUP(X26,Feuil1!$C$1:$BL$10,7,FALSE) -> 15 | AH26: =T26-HLOOKUP(X26,Feuil1!$C$1:$BL$10,8,FALSE) -> 0 | AI26: =T26-HLOOKUP(X26,Feuil1!$C$1:$BL$10,9,FALSE) -> -15 | AJ26: =T26-HLOOKUP(X26,Feuil1!$C$1:$BL$10,10,FALSE) -> -865 | AQ26: INTB +
A27: H | H27: 2001 | I27: 69 | L27: 90 | O27: 90 | P27: 115 | S27: 115 | T27: 205 | V27: NAT + | W27: 15 | X27: =IF(I27="","",IF(A27="H",IF(OR(H27="SEN",H27<1997),VLOOKUP(I27,Feuil1!$A$11:$G$29,6),IF(AND(H27>1996,H27<2000),VLOOKUP(I27,Feuil1!$A$11:$G$29,5),IF(AND(H27>1999,H27<2002),VLOOKUP(I27,Feuil1!$A$11:$G$29,4),IF(AND(H27>2001,H27<2004),VLOOKUP(I27,Feuil1!$A$11:$G$29,3),VLOOKUP(I27,Feuil1!$A$11:$G$29,2))))),IF(OR(H27="SEN",H27<1997),VLOOKUP(I27,Feuil1!$G$11:$L$25,6),IF(AND(H27>1996,H27<2000),VLOOKUP(I27,Feuil1!$G$11:$L$25,5),IF(AND(H27>1999,H27<2002),VLOOKUP(I27,Feuil1!$G$11:$L$25,4),IF(AND(H27>2001,H27<2004),VLOOKUP(I27,Feuil1!$G$11:$L$25,3),VLOOKUP(I27,Feuil1!$G$11:$L$25,2))))))) -> C2 69 | Y27: 275.7782085 | AB27: =T27-HLOOKUP(X27,Feuil1!$C$1:$BL$10,2,FALSE) -> 110 | AC27: =T27-HLOOKUP(X27,Feuil1!$C$1:$BL$10,3,FALSE) -> 90 | AD27: =T27-HLOOKUP(X27,Feuil1!$C$1:$BL$10,4,FALSE) -> 75 | AE27: =T27-HLOOKUP(X27,Feuil1!$C$1:$BL$10,5,FALSE) -> 55 | AF27: =T27-HLOOKUP(X27,Feuil1!$C$1:$BL$10,6,FALSE) -> 35 | AG27: =T27-HLOOKUP(X27,Feuil1!$C$1:$BL$10,7,FALSE) -> 15 | AH27: =T27-HLOOKUP(X27,Feuil1!$C$1:$BL$10,8,FALSE) -> -5 | AI27: =T27-HLOOKUP(X27,Feuil1!$C$1:$BL$10,9,FALSE) -> -25 | AJ27: =T27-HLOOKUP(X27,Feuil1!$C$1:$BL$10,10,FALSE) -> -795 | AQ27: NAT +
A28: H | H28: 1998 | I28: 69 | L28: 65 | O28: 65 | P28: 85 | S28: 85 | T28: 150 | V28: REG + | W28: 0 | X28: =IF(I28="","",IF(A28="H",IF(OR(H28="SEN",H28<1997),VLOOKUP(I28,Feuil1!$A$11:$G$29,6),IF(AND(H28>1996,H28<2000),VLOOKUP(I28,Feuil1!$A$11:$G$29,5),IF(AND(H28>1999,H28<2002),VLOOKUP(I28,Feuil1!$A$11:$G$29,4),IF(AND(H28>2001,H28<2004),VLOOKUP(I28,Feuil1!$A$11:$G$29,3),VLOOKUP(I28,Feuil1!$A$11:$G$29,2))))),IF(OR(H28="SEN",H28<1997),VLOOKUP(I28,Feuil1!$G$11:$L$25,6),IF(AND(H28>1996,H28<2000),VLOOKUP(I28,Feuil1!$G$11:$L$25,5),IF(AND(H28>1999,H28<2002),VLOOKUP(I28,Feuil1!$G$11:$L$25,4),IF(AND(H28>2001,H28<2004),VLOOKUP(I28,Feuil1!$G$11:$L$25,3),VLOOKUP(I28,Feuil1!$G$11:$L$25,2))))))) -> J69 | Y28: 201.788933 | AB28: =T28-HLOOKUP(X28,Feuil1!$C$1:$BL$10,2,FALSE) -> 40 | AC28: =T28-HLOOKUP(X28,Feuil1!$C$1:$BL$10,3,FALSE) -> 20 | AD28: =T28-HLOOKUP(X28,Feuil1!$C$1:$BL$10,4,FALSE) -> 0 | AE28: =T28-HLOOKUP(X28,Feuil1!$C$1:$BL$10,5,FALSE) -> -20 | AF28: =T28-HLOOKUP(X28,Feuil1!$C$1:$BL$10,6,FALSE) -> -40 | AG28: =T28-HLOOKUP(X28,Feuil1!$C$1:$BL$10,7,FALSE) -> -70 | AH28: =T28-HLOOKUP(X28,Feuil1!$C$1:$BL$10,8,FALSE) -> -90 | AI28: =T28-HLOOKUP(X28,Feuil1!$C$1:$BL$10,9,FALSE) -> -110 | AJ28: =T28-HLOOKUP(X28,Feuil1!$C$1:$BL$10,10,FALSE) -> -850 | AQ28: REG +
A29: H | H29: 1999 | I29: 58 | L29: 50 | O29: 50 | P29: 70 | S29: 70 | T29: 120 | V29: =IF(H29="","",AQ29) -> DEP + | W29: =IF(AJ29>=0,AJ29,IF(AI29>=0,AI29,IF(AH29>=0,AH29,IF(AG29>=0,AG29,IF(AF29>=0,AF29,IF(AE29>=0,AE29,IF(AD29>=0,AD29,IF(AC29>=0,AC29,AB29)))))))) -> 0 | X29: =IF(I29="","",IF(A29="H",IF(OR(H29="SEN",H29<1997),VLOOKUP(I29,Feuil1!$A$11:$G$29,6),IF(AND(H29>1996,H29<2000),VLOOKUP(I29,Feuil1!$A$11:$G$29,5),IF(AND(H29>1999,H29<2002),VLOOKUP(I29,Feuil1!$A$11:$G$29,4),IF(AND(H29>2001,H29<2004),VLOOKUP(I29,Feuil1!$A$11:$G$29,3),VLOOKUP(I29,Feuil1!$A$11:$G$29,2))))),IF(OR(H29="SEN",H29<1997),VLOOKUP(I29,Feuil1!$G$11:$L$25,6),IF(AND(H29>1996,H29<2000),VLOOKUP(I29,Feuil1!$G$11:$L$25,5),IF(AND(H29>1999,H29<2002),VLOOKUP(I29,Feuil1!$G$11:$L$25,4),IF(AND(H29>2001,H29<2004),VLOOKUP(I29,Feuil1!$G$11:$L$25,3),VLOOKUP(I29,Feuil1!$G$11:$L$25,2))))))) -> J62 | Y29: =IF(I29="","",IF(A29="H",10^(0.794358141*LOG(I29/174.393)^2)*T29,IF(A29="F",10^(0.89726074*LOG(I29/148.026)^2)*T29,""))) -> 182.287178 | AB29: =T29-HLOOKUP(X29,Feuil1!$C$1:$BL$10,2,FALSE) -> 30 | AC29: =T29-HLOOKUP(X29,Feuil1!$C$1:$BL$10,3,FALSE) -> 0 | AD29: =T29-HLOOKUP(X29,Feuil1!$C$1:$BL$10,4,FALSE) -> -15 | AE29: =T29-HLOOKUP(X29,Feuil1!$C$1:$BL$10,5,FALSE) -> -30 | AF29: =T29-HLOOKUP(X29,Feuil1!$C$1:$BL$10,6,FALSE) -> -50 | AG29: =T29-HLOOKUP(X29,Feuil1!$C$1:$BL$10,7,FALSE) -> -70 | AH29: =T29-HLOOKUP(X29,Feuil1!$C$1:$BL$10,8,FALSE) -> -90 | AI29: =T29-HLOOKUP(X29,Feuil1!$C$1:$BL$10,9,FALSE) -> -110 | AJ29: =T29-HLOOKUP(X29,Feuil1!$C$1:$BL$10,10,FALSE) -> -880 | AQ29: =IF(AJ29>=0,$AJ$4,IF(AI29>=0,$AI$4,IF(AH29>=0,$AH$4,IF(AG29>=0,$AG$4,IF(AF29>=0,$AF$4,IF(AE29>=0,$AE$4,IF(AD29>=0,$AD$4,IF(AC29>=0,$AC$4,$AB$4)))))))) -> DEP +
A30: H | H30: 2000 | I30: 53 | L30: 50 | O30: 50 | P30: 55 | S30: 55 | T30: 105 | V30: =IF(H30="","",AQ30) -> REG + | W30: =IF(AJ30>=0,AJ30,IF(AI30>=0,AI30,IF(AH30>=0,AH30,IF(AG30>=0,AG30,IF(AF30>=0,AF30,IF(AE30>=0,AE30,IF(AD30>=0,AD30,IF(AC30>=0,AC30,AB30)))))))) -> 5 | X30: =IF(I30="","",IF(A30="H",IF(OR(H30="SEN",H30<1997),VLOOKUP(I30,Feuil1!$A$11:$G$29,6),IF(AND(H30>1996,H30<2000),VLOOKUP(I30,Feuil1!$A$11:$G$29,5),IF(AND(H30>1999,H30<2002),VLOOKUP(I30,Feuil1!$A$11:$G$29,4),IF(AND(H30>2001,H30<2004),VLOOKUP(I30,Feuil1!$A$11:$G$29,3),VLOOKUP(I30,Feuil1!$A$11:$G$29,2))))),IF(OR(H30="SEN",H30<1997),VLOOKUP(I30,Feuil1!$G$11:$L$25,6),IF(AND(H30>1996,H30<2000),VLOOKUP(I30,Feuil1!$G$11:$L$25,5),IF(AND(H30>1999,H30<2002),VLOOKUP(I30,Feuil1!$G$11:$L$25,4),IF(AND(H30>2001,H30<2004),VLOOKUP(I30,Feuil1!$G$11:$L$25,3),VLOOKUP(I30,Feuil1!$G$11:$L$25,2))))))) -> C2 56 | Y30: =IF(I30="","",IF(A30="H",10^(0.794358141*LOG(I30/174.393)^2)*T30,IF(A30="F",10^(0.89726074*LOG(I30/148.026)^2)*T30,""))) -> 171.285459 | AB30: =T30-HLOOKUP(X30,Feuil1!$C$1:$BL$10,2,FALSE) -> 40 | AC30: =T30-HLOOKUP(X30,Feuil1!$C$1:$BL$10,3,FALSE) -> 20 | AD30: =T30-HLOOKUP(X30,Feuil1!$C$1:$BL$10,4,FALSE) -> 5 | AE30: =T30-HLOOKUP(X30,Feuil1!$C$1:$BL$10,5,FALSE) -> -10 | AF30: =T30-HLOOKUP(X30,Feuil1!$C$1:$BL$10,6,FALSE) -> -25 | AG30: =T30-HLOOKUP(X30,Feuil1!$C$1:$BL$10,7,FALSE) -> -40 | AH30: =T30-HLOOKUP(X30,Feuil1!$C$1:$BL$10,8,FALSE) -> -65 | AI30: =T30-HLOOKUP(X30,Feuil1!$C$1:$BL$10,9,FALSE) -> -85 | AJ30: =T30-HLOOKUP(X30,Feuil1!$C$1:$BL$10,10,FALSE) -> -895 | AQ30: =IF(AJ30>=0,$AJ$4,IF(AI30>=0,$AI$4,IF(AH30>=0,$AH$4,IF(AG30>=0,$AG$4,IF(AF30>=0,$AF$4,IF(AE30>=0,$AE$4,IF(AD30>=0,$AD$4,IF(AC30>=0,$AC$4,$AB$4)))))))) -> REG +
AB31: =T31-HLOOKUP(X31,Feuil1!$C$1:$BL$10,2,FALSE) ->  | AC31: =T31-HLOOKUP(X31,Feuil1!$C$1:$BL$10,3,FALSE) ->  | AD31: =T31-HLOOKUP(X31,Feuil1!$C$1:$BL$10,4,FALSE) ->  | AE31: =T31-HLOOKUP(X31,Feuil1!$C$1:$BL$10,5,FALSE) ->  | AF31: =T31-HLOOKUP(X31,Feuil1!$C$1:$BL$10,6,FALSE) ->  | AG31: =T31-HLOOKUP(X31,Feuil1!$C$1:$BL$10,7,FALSE) ->  | AH31: =T31-HLOOKUP(X31,Feuil1!$C$1:$BL$10,8,FALSE) ->  | AI31: =T31-HLOOKUP(X31,Feuil1!$C$1:$BL$10,9,FALSE) ->  | AJ31: =T31-HLOOKUP(X31,Feuil1!$C$1:$BL$10,10,FALSE) -> 
B32: Secrétaire : | J32: 1 | AB32: =T32-HLOOKUP(X32,Feuil1!$C$1:$BL$10,2,FALSE) ->  | AC32: =T32-HLOOKUP(X32,Feuil1!$C$1:$BL$10,3,FALSE) ->  | AD32: =T32-HLOOKUP(X32,Feuil1!$C$1:$BL$10,4,FALSE) ->  | AE32: =T32-HLOOKUP(X32,Feuil1!$C$1:$BL$10,5,FALSE) ->  | AF32: =T32-HLOOKUP(X32,Feuil1!$C$1:$BL$10,6,FALSE) ->  | AG32: =T32-HLOOKUP(X32,Feuil1!$C$1:$BL$10,7,FALSE) ->  | AH32: =T32-HLOOKUP(X32,Feuil1!$C$1:$BL$10,8,FALSE) ->  | AI32: =T32-HLOOKUP(X32,Feuil1!$C$1:$BL$10,9,FALSE) ->  | AJ32: =T32-HLOOKUP(X32,Feuil1!$C$1:$BL$10,10,FALSE) -> 
I33: ARBITRES : 2 | R33: Signatures : | AB33: =T33-HLOOKUP(X33,Feuil1!$C$1:$BL$10,2,FALSE) ->  | AC33: =T33-HLOOKUP(X33,Feuil1!$C$1:$BL$10,3,FALSE) ->  | AD33: =T33-HLOOKUP(X33,Feuil1!$C$1:$BL$10,4,FALSE) ->  | AE33: =T33-HLOOKUP(X33,Feuil1!$C$1:$BL$10,5,FALSE) ->  | AF33: =T33-HLOOKUP(X33,Feuil1!$C$1:$BL$10,6,FALSE) ->  | AG33: =T33-HLOOKUP(X33,Feuil1!$C$1:$BL$10,7,FALSE) ->  | AH33: =T33-HLOOKUP(X33,Feuil1!$C$1:$BL$10,8,FALSE) ->  | AI33: =T33-HLOOKUP(X33,Feuil1!$C$1:$BL$10,9,FALSE) ->  | AJ33: =T33-HLOOKUP(X33,Feuil1!$C$1:$BL$10,10,FALSE) -> 
B34: Contrôleur Technique 1 : | J34: 3 | AB34: =T34-HLOOKUP(X34,Feuil1!$C$1:$BL$10,2,FALSE) ->  | AC34: =T34-HLOOKUP(X34,Feuil1!$C$1:$BL$10,3,FALSE) ->  | AD34: =T34-HLOOKUP(X34,Feuil1!$C$1:$BL$10,4,FALSE) ->  | AE34: =T34-HLOOKUP(X34,Feuil1!$C$1:$BL$10,5,FALSE) ->  | AF34: =T34-HLOOKUP(X34,Feuil1!$C$1:$BL$10,6,FALSE) ->  | AG34: =T34-HLOOKUP(X34,Feuil1!$C$1:$BL$10,7,FALSE) ->  | AH34: =T34-HLOOKUP(X34,Feuil1!$C$1:$BL$10,8,FALSE) ->  | AI34: =T34-HLOOKUP(X34,Feuil1!$C$1:$BL$10,9,FALSE) ->  | AJ34: =T34-HLOOKUP(X34,Feuil1!$C$1:$BL$10,10,FALSE) -> 
B35: Contrôleur Technique 2 : | AB35: =T35-HLOOKUP(X35,Feuil1!$C$1:$BL$10,2,FALSE) ->  | AC35: =T35-HLOOKUP(X35,Feuil1!$C$1:$BL$10,3,FALSE) ->  | AD35: =T35-HLOOKUP(X35,Feuil1!$C$1:$BL$10,4,FALSE) ->  | AE35: =T35-HLOOKUP(X35,Feuil1!$C$1:$BL$10,5,FALSE) ->  | AF35: =T35-HLOOKUP(X35,Feuil1!$C$1:$BL$10,6,FALSE) ->  | AG35: =T35-HLOOKUP(X35,Feuil1!$C$1:$BL$10,7,FALSE) ->  | AH35: =T35-HLOOKUP(X35,Feuil1!$C$1:$BL$10,8,FALSE) ->  | AI35: =T35-HLOOKUP(X35,Feuil1!$C$1:$BL$10,9,FALSE) ->  | AJ35: =T35-HLOOKUP(X35,Feuil1!$C$1:$BL$10,10,FALSE) -> 
B36: Chronométreur : | J36: JURY : | AB36: =T36-HLOOKUP(X36,Feuil1!$C$1:$BL$10,2,FALSE) ->  | AC36: =T36-HLOOKUP(X36,Feuil1!$C$1:$BL$10,3,FALSE) ->  | AD36: =T36-HLOOKUP(X36,Feuil1!$C$1:$BL$10,4,FALSE) ->  | AE36: =T36-HLOOKUP(X36,Feuil1!$C$1:$BL$10,5,FALSE) ->  | AF36: =T36-HLOOKUP(X36,Feuil1!$C$1:$BL$10,6,FALSE) ->  | AG36: =T36-HLOOKUP(X36,Feuil1!$C$1:$BL$10,7,FALSE) ->  | AH36: =T36-HLOOKUP(X36,Feuil1!$C$1:$BL$10,8,FALSE) ->  | AI36: =T36-HLOOKUP(X36,Feuil1!$C$1:$BL$10,9,FALSE) ->  | AJ36: =T36-HLOOKUP(X36,Feuil1!$C$1:$BL$10,10,FALSE) -> 
AB537: J77 | AC537: J85 | AD537: J94 | AE537: J105 | AF537: J+105 | AH537: J56 | AI537: J62 | AJ537: J69 | AK537: J77 | AL537: J85 | AM537: J94 | AN537: J105 | AO537: J+105 | AQ537: S56 | AR537: S62 | AS537: S69 | AT537: S77 | AU537: S85 | AV537: S94 | AW537: S105 | AX537: S+105
AB538: 145 | AC538: 160 | AD538: 170 | AE538: 180 | AF538: 190 | AH538: 100 | AI538: 115 | AJ538: 130 | AK538: 145 | AL538: 160 | AM538: 170 | AN538: 180 | AO538: 190 | AQ538: 115 | AR538: 135 | AS538: 150 | AT538: 165 | AU538: 180 | AV538: 190 | AW538: 200 | AX538: 210
AB539: 165 | AC539: 180 | AD539: 190 | AE539: 200 | AF539: 210 | AH539: 115 | AI539: 135 | AJ539: 150 | AK539: 165 | AL539: 180 | AM539: 190 | AN539: 200 | AO539: 210 | AQ539: 130 | AR539: 150 | AS539: 165 | AT539: 185 | AU539: 200 | AV539: 210 | AW539: 220 | AX539: 230
AB540: 185 | AC540: 200 | AD540: 210 | AE540: 220 | AF540: 230 | AH540: 130 | AI540: 150 | AJ540: 165 | AK540: 185 | AL540: 200 | AM540: 210 | AN540: 220 | AO540: 230 | AQ540: 145 | AR540: 165 | AS540: 180 | AT540: 200 | AU540: 220 | AV540: 230 | AW540: 240 | AX540: 250
AB541: 200 | AC541: 220 | AD541: 230 | AE541: 240 | AF541: 250 | AH541: 145 | AI541: 165 | AJ541: 180 | AK541: 200 | AL541: 220 | AM541: 230 | AN541: 240 | AO541: 250 | AQ541: 175 | AR541: 195 | AS541: 215 | AT541: 235 | AU541: 250 | AV541: 260 | AW541: 275 | AX541: 280
AB542: 235 | AC542: 250 | AD542: 260 | AE542: 275 | AF542: 280 | AH542: 175 | AI542: 195 | AJ542: 215 | AK542: 235 | AL542: 250 | AM542: 260 | AN542: 275 | AO542: 280 | AQ542: 210 | AR542: 230 | AS542: 250 | AT542: 270 | AU542: 290 | AV542: 300 | AW542: 310 | AX542: 325
AB543: 270 | AC543: 290 | AD543: 300 | AE543: 310 | AF543: 325 | AH543: 210 | AI543: 230 | AJ543: 250 | AK543: 270 | AL543: 290 | AM543: 300 | AN543: 310 | AO543: 325 | AQ543: 230 | AR543: 255 | AS543: 275 | AT543: 300 | AU543: 315 | AV543: 335 | AW543: 345 | AX543: 355
AB544: 320 | AC544: 335 | AD544: 355 | AE544: 370 | AF544: 380 | AH544: 245 | AI544: 270 | AJ544: 295 | AK544: 320 | AL544: 335 | AM544: 355 | AN544: 370 | AO544: 380 | AQ544: 245 | AR544: 270 | AS544: 295 | AT544: 320 | AU544: 335 | AV544: 355 | AW544: 370 | AX544: 380
